bitfinex/quotes_BTCUSD_20241001
["timestamp","ask_amount","ask_price","bid_price","bid_amount"]
[1727816807281,0.01252815,61011.0,61010.0,0.087236]
[1727816807503,0.000819,61020.0,61019.0,0.163883]
[1727816807745,0.000819,61020.0,61019.0,0.239583]
[1727816808001,0.01126583,61020.0,61019.0,0.425383]
[1727816808456,0.01126583,61020.0,61019.0,0.56142986]
[1727816808675,0.000819,61020.0,61019.0,0.56142986]
[1727816808915,0.000819,61020.0,61019.0,0.39754686]
[1727816809145,0.000819,61020.0,61019.0,0.57542986]
[1727816809357,0.000819,61020.0,61019.0,0.41154686]
[1727816809563,0.01142944,61020.0,61019.0,0.41154686]
[1727816809789,0.42243252,61020.0,61019.0,0.014]
[1727816810038,0.17630944,61020.0,61019.0,0.024]
[1727816810269,0.44100389,61020.0,61019.0,0.024]
[1727816810534,0.44100389,61020.0,61016.0,0.163889]
[1727816810535,0.01142944,61020.0,61016.0,0.163889]
[1727816810796,0.01142944,61020.0,61019.0,0.014]
[1727816810797,0.17530944,61020.0,61019.0,0.014]
[1727816811039,0.163886,61018.0,61012.0,0.57492608]
[1727816811269,0.163886,61018.0,61014.0,0.163896]
[1727816811719,0.163886,61018.0,61015.0,0.11760646]
[1727816812027,0.329583,61020.0,61016.0,0.014]
[1727816812028,0.17449844,61017.0,61016.0,0.014]
[1727816812278,0.01061044,61017.0,61011.0,0.0754]
[1727816812526,0.17449944,61017.0,61013.0,0.163897]
[1727816812737,0.17449944,61017.0,61012.0,0.05651305]
[1727816812738,0.000819,61020.0,61012.0,0.05651305]
[1727816812937,0.000819,61020.0,61016.0,0.003]
[1727816812938,0.163888,61017.0,61016.0,0.003]
[1727816813428,0.327774,61018.0,61014.0,0.014]
[1727816813896,0.327777,61017.0,61014.0,0.014]
[1727816814344,0.163894,61015.0,61014.0,0.014]
[1727816814349,0.327788,61015.0,61011.0,0.0884]
[1727816814547,0.163901,61013.0,61012.0,0.014]
[1727816814764,0.328777,61017.0,61011.0,0.0884]
[1727816814765,0.24712308,61016.0,61011.0,0.0884]
[1727816814979,0.163902,61012.0,61011.0,0.0884]
[1727816815404,0.17451244,61012.0,61011.0,0.0884]
[1727816815608,0.17451244,61012.0,61011.0,0.0754]
[1727816816025,0.01061044,61012.0,61011.0,0.0754]
[1727816816474,0.163902,61012.0,61011.0,0.0754]
[1727816816694,0.17451244,61012.0,61011.0,0.0754]
[1727816816900,0.17551244,61012.0,61011.0,0.0864]
[1727816817101,0.17551244,61012.0,61011.0,0.1004]
[1727816817519,0.17551244,61012.0,61011.0,0.0864]
[1727816817732,0.17551244,61012.0,61011.0,0.1004]
[1727816818214,0.17551244,61012.0,61011.0,0.0864]
[1727816818446,0.17551244,61012.0,61011.0,0.1004]
[1727816818886,0.17451244,61012.0,61011.0,0.0894]
[1727816819092,0.17551244,61012.0,61011.0,0.0964]
[1727816819542,0.17451244,61012.0,61011.0,0.0754]
[1727816819972,0.17551244,61012.0,61011.0,0.1004]
[1727816820430,0.17551244,61012.0,61011.0,0.014]
[1727816820431,0.2468561,61012.0,61011.0,0.014]
[1727816820727,0.5756611,61012.0,61011.0,0.011]
[1727816820982,0.5756611,61012.0,61011.0,0.025]
[1727816821177,0.5756611,61012.0,61011.0,0.011]
[1727816821397,0.01161044,61012.0,61011.0,0.174904]
[1727816821610,0.01161044,61012.0,61011.0,0.62207615]
[1727816821828,0.000819,61017.0,61016.0,0.430091]
[1727816822035,0.000819,61017.0,61016.0,1.07795585]
[1727816823067,0.000819,61017.0,61016.0,1.08095585]
[1727816823068,0.001819,61017.0,61016.0,1.08095585]
[1727816823720,0.001819,61017.0,61016.0,1.09495585]
[1727816824161,0.001819,61017.0,61016.0,0.93106485]
[1727816824379,0.001819,61017.0,61016.0,1.09495585]
[1727816824820,0.001819,61017.0,61016.0,0.34478]
[1727816825039,0.43040145,61017.0,61016.0,0.34478]
[1727816825264,0.4794562,61017.0,61016.0,0.34478]
[1727816825468,0.50398357,61017.0,61016.0,0.34478]
[1727816825675,0.42940145,61017.0,61016.0,0.34178]
[1727816826147,0.71493583,61017.0,61016.0,0.35378]
[1727816826624,0.55051095,61017.0,61016.0,0.32778]
[1727816826860,0.55151095,61017.0,61016.0,0.33578]
[1727816827070,1.07603832,61017.0,61016.0,0.32778]
[1727816827274,2.28018876,61017.0,61016.0,0.33378]
[1727816827487,2.44707058,61017.0,61016.0,0.33378]
[1727816827693,2.55349458,61017.0,61016.0,0.32778]
[1727816827921,2.55349458,61017.0,61016.0,0.33578]
[1727816828123,1.94407058,61017.0,61016.0,0.33578]
[1727816828330,1.78218876,61017.0,61016.0,0.32778]
[1727816828544,1.80787986,61017.0,61016.0,0.32778]
[1727816828745,1.80487986,61017.0,61016.0,0.32778]
[1727816829165,1.80987986,61017.0,61016.0,0.32878]
[1727816829368,1.81861145,61017.0,61016.0,0.32878]
[1727816829578,1.81661145,61017.0,61016.0,0.32778]
[1727816829826,1.79061145,61017.0,61016.0,0.32778]
[1727816830090,0.25113713,61017.0,61016.0,0.32778]
[1727816830349,0.20212969,61017.0,61016.0,0.33478]
[1727816830607,0.01255059,61017.0,61016.0,0.32778]
[1727816830847,0.004819,61017.0,61016.0,0.3607]
[1727816831084,0.004819,61017.0,61016.0,0.64795726]
[1727816831494,0.004819,61017.0,61016.0,0.81265171]
[1727816831495,0.003819,61017.0,61016.0,0.81265171]
[1727816831960,0.000819,61017.0,61016.0,0.81265171]
[1727816832171,0.000819,61017.0,61016.0,0.81365171]
[1727816832376,0.000819,61017.0,61016.0,1.06077479]
[1727816832584,0.000819,61017.0,61016.0,0.81265171]
[1727816833011,0.000819,61017.0,61016.0,0.83265171]
[1727816833244,0.000819,61017.0,61016.0,0.82665171]
[1727816833456,0.000819,61017.0,61016.0,0.84065171]
[1727816833660,0.000819,61017.0,61016.0,0.70328545]
[1727816833866,0.000819,61017.0,61016.0,0.68928545]
[1727816834083,0.000819,61017.0,61016.0,0.70328545]
[1727816834526,0.164707,61017.0,61016.0,0.3607]
[1727816834735,0.17350441,61017.0,61016.0,0.3747]
[1727816835157,0.17350441,61017.0,61016.0,0.3887]
[1727816835582,0.17350441,61017.0,61016.0,0.3747]
[1727816835822,0.17350441,61017.0,61016.0,0.34178]
[1727816836272,0.17350441,61017.0,61016.0,0.35578]
[1727816837374,0.19918963,61017.0,61016.0,0.35578]
[1727816837797,0.17350441,61017.0,61016.0,0.35578]
[1727816838005,0.17350441,61017.0,61016.0,0.4343118]
[1727816838938,0.00961641,61017.0,61016.0,0.4343118]
[1727816839360,0.000819,61017.0,61016.0,0.4343118]
[1727816839660,0.164707,61017.0,61016.0,0.35578]
[1727816840090,0.17349414,61017.0,61016.0,0.35578]
[1727816840312,0.46118859,61017.0,61016.0,0.35578]
[1727816840517,0.72534285,61017.0,61016.0,0.34178]
[1727816840728,0.70069922,61017.0,61016.0,0.34178]
[1727816840941,0.67501172,61017.0,61016.0,0.35578]
[1727816841377,0.67501172,61017.0,61016.0,0.34178]
[1727816841612,0.67501172,61017.0,61016.0,0.35578]
[1727816841613,0.4881299,61017.0,61016.0,0.35578]
[1727816841891,0.32343545,61017.0,61016.0,0.35578]
[1727816842108,0.32243545,61017.0,61016.0,0.32778]
[1727816842327,0.27349414,61017.0,61016.0,0.33378]
[1727816842579,0.27849414,61017.0,61016.0,0.32778]
[1727816842824,0.44337596,61017.0,61016.0,0.32778]
[1727816843048,0.48728002,61017.0,61016.0,0.33578]
[1727816843272,0.48828002,61017.0,61016.0,0.33578]
[1727816843722,0.43937596,61017.0,61016.0,0.33578]
[1727816844167,0.4650651,61017.0,61016.0,0.33578]
[1727816844617,0.53765352,61017.0,61016.0,0.33578]
[1727816844837,0.58654926,61017.0,61016.0,0.33578]
[1727816845355,0.51296084,61017.0,61016.0,0.33578]
[1727816845596,0.51296084,61017.0,61016.0,0.32778]
[1727816846326,0.7987799,61017.0,61016.0,0.32778]
[1727816846573,0.70065529,61017.0,61016.0,0.33678]
[1727816847232,0.70065529,61017.0,61016.0,0.32778]
[1727816847670,0.70065529,61017.0,61016.0,0.33078]
[1727816847902,0.70165529,61017.0,61016.0,0.33078]
[1727816848531,0.53677347,61017.0,61016.0,0.33078]
[1727816848746,0.53577347,61017.0,61016.0,0.33078]
[1727816848972,0.53877347,61017.0,61016.0,0.33078]
[1727816849195,0.47348937,61017.0,61016.0,0.33078]
[1727816849406,0.47348937,61017.0,61016.0,0.32778]
[1727816849407,0.30218328,61017.0,61016.0,0.32778]
[1727816849632,0.37260731,61017.0,61016.0,0.32778]
[1727816849859,0.37260731,61017.0,61016.0,0.33678]
[1727816849860,0.29918328,61017.0,61016.0,0.33678]
[1727816850074,0.29918328,61017.0,61016.0,0.32778]
[1727816850296,0.37260731,61017.0,61016.0,0.32778]
[1727816850512,0.37260731,61017.0,61016.0,0.33478]
[1727816850747,0.37260731,61017.0,61016.0,0.32778]
[1727816851009,0.37260731,61017.0,61016.0,0.33678]
[1727816851235,0.34691817,61017.0,61016.0,0.32778]
[1727816851457,0.27349414,61017.0,61016.0,0.51708]
[1727816851675,0.27349414,61017.0,61016.0,0.52508]
[1727816851883,0.27349414,61017.0,61016.0,0.60668]
[1727816852548,0.27349414,61017.0,61016.0,0.8314028]
[1727816852549,0.00960614,61017.0,61016.0,0.8314028]
[1727816852768,0.00960614,61017.0,61016.0,0.93526545]
[1727816853030,0.00960614,61017.0,61016.0,0.92726545]
[1727816853252,0.000819,61017.0,61016.0,0.93526545]
[1727816853479,0.000819,61017.0,61016.0,0.92726545]
[1727816853687,0.000819,61017.0,61016.0,0.94126545]
[1727816853893,0.000819,61017.0,61016.0,1.10614727]
[1727816854538,0.000819,61017.0,61016.0,1.09214727]
[1727816854786,0.000819,61017.0,61016.0,1.11014727]
[1727816855215,0.000819,61017.0,61016.0,1.10614727]
[1727816855653,0.000819,61017.0,61016.0,1.11914727]
[1727816856076,0.000819,61017.0,61016.0,1.09214727]
[1727816856291,0.000819,61017.0,61016.0,1.10614727]
[1727816856507,0.000819,61017.0,61016.0,1.11914727]
[1727816856725,0.000819,61017.0,61016.0,0.95445282]
[1727816857174,0.000819,61017.0,61016.0,0.61168]
[1727816857411,0.000819,61017.0,61016.0,0.62568]
[1727816857622,0.000819,61017.0,61016.0,0.775571]
[1727816857836,0.00828114,61017.0,61016.0,0.776571]
[1727816858071,0.000819,61017.0,61016.0,0.62668]
[1727816858285,0.17216914,61017.0,61016.0,0.62668]
[1727816858502,0.02650407,61017.0,61016.0,0.61268]
[1727816858781,0.03396621,61017.0,61016.0,0.61268]
[1727816858984,0.03396621,61017.0,61016.0,0.62668]
[1727816859188,0.03396621,61017.0,61016.0,0.61268]
[1727816859404,0.19785421,61017.0,61016.0,0.61268]
[1727816859613,0.19785421,61017.0,61016.0,0.59868]
[1727816859830,0.19885421,61017.0,61016.0,0.61268]
[1727816860026,0.19885421,61017.0,61016.0,0.62668]
[1727816860495,0.19885421,61017.0,61016.0,0.34178]
[1727816860496,0.17316914,61017.0,61016.0,0.34178]
[1727816860704,0.22591256,61017.0,61016.0,0.35578]
[1727816860924,0.22591256,61017.0,61016.0,0.34178]
[1727816860925,0.17316914,61017.0,61016.0,0.34178]
[1727816862242,0.17216914,61017.0,61016.0,0.32778]
[1727816862454,0.17316914,61017.0,61016.0,0.35578]
[1727816862676,0.17316914,61017.0,61016.0,0.34178]
[1727816862882,0.17216914,61017.0,61016.0,0.34078]
[1727816863316,0.2456042,61017.0,61016.0,0.34578]
[1727816863555,1.83285418,61017.0,61016.0,0.34578]
[1727816863778,2.40733012,61017.0,61016.0,0.34578]
[1727816863988,2.85528846,61017.0,61016.0,0.34578]
[1727816864647,2.85528846,61017.0,61010.0,0.001636]
[1727816864648,0.002,61011.0,61010.0,0.001636]
[1727816864875,1.66051663,61011.0,61010.0,1e-06]
[1727816865159,1.66051663,61011.0,60996.0,0.24712308]
[1727816865160,0.788942,60997.0,60996.0,0.24712308]
[1727816865362,2.5949116,60997.0,60996.0,0.24712308]
[1727816865576,0.263961,60990.0,60989.0,0.24712308]
[1727816865807,0.45165545,60990.0,60989.0,0.24712308]
[1727816866064,0.45165545,60990.0,60981.0,0.0755]
[1727816866065,0.263974,60985.0,60981.0,0.0755]
[1727816866463,0.263974,60985.0,60982.0,0.001636]
[1727816867181,2.15257999,60985.0,60982.0,0.001636]
[1727816867408,2.67828227,60985.0,60984.0,0.012636]
[1727816867634,2.80170427,60985.0,60984.0,0.012636]
[1727816867855,2.84615727,60985.0,60984.0,0.012636]
[1727816868068,2.79506089,60985.0,60984.0,0.012636]
[1727816868620,2.79506089,60985.0,60974.0,0.24875908]
[1727816868621,1.06846489,60975.0,60974.0,0.24875908]
[1727816868857,1.06846489,60975.0,60974.0,0.24548808]
[1727816868858,2.61632034,60975.0,60974.0,0.24548808]
[1727816869111,2.61632034,60975.0,60953.0,0.0818]
[1727816869112,0.264025,60966.0,60953.0,0.0818]
[1727816869317,0.502,60968.0,60953.0,0.0818]
[1727816869318,0.264041,60960.0,60959.0,0.24875908]
[1727816869753,0.264041,60960.0,60959.0,0.04769846]
[1727816869990,0.264041,60960.0,60959.0,0.001636]
[1727816870242,1.2779,60967.0,60959.0,0.001636]
[1727816870460,1.2779,60967.0,60959.0,0.165679]
[1727816870461,0.264031,60964.0,60959.0,0.165679]
[1727816870675,0.1,60964.0,60959.0,0.001636]
[1727816870882,0.264032,60964.0,60959.0,0.001636]
[1727816871338,0.328055,60966.0,60961.0,0.164037]
[1727816871339,0.164027,60966.0,60961.0,0.164037]
[1727816871572,0.02570933,60963.0,60959.0,0.2150574]
[1727816871794,0.02570933,60963.0,60962.0,0.52649989]
[1727816871997,0.24712308,60971.0,60970.0,0.164015]
[1727816872424,0.164003,60975.0,60966.0,0.164024]
[1727816872629,0.164,60976.0,60968.0,0.164019]
[1727816872837,0.32798,60980.0,60968.0,0.164019]
[1727816873069,0.327995,60977.0,60965.0,0.328056]
[1727816873287,0.164004,60974.0,60966.0,0.164023]
[1727816873514,0.001,60971.0,60970.0,0.015]
[1727816873791,0.16401,60972.0,60970.0,0.005]
[1727816874072,0.328007,60975.0,60970.0,0.005]
[1727816874264,0.164012,60971.0,60970.0,0.005]
[1727816874970,0.164012,60971.0,60963.0,0.41181753]
[1727816874971,0.164018,60969.0,60963.0,0.41181753]
[1727816875183,0.164018,60969.0,60963.0,0.57584953]
[1727816875393,0.164018,60969.0,60963.0,0.164032]
[1727816875610,0.164017,60969.0,60963.0,0.164033]
[1727816876033,0.0257057,60971.0,60964.0,0.16403]
[1727816876034,0.1897187,60971.0,60964.0,0.16403]
[1727816876259,0.001,60969.0,60963.0,0.01]
[1727816876459,0.328049,60967.0,60962.0,0.083]
[1727816876666,0.164029,60965.0,60964.0,0.32805]
[1727816877363,0.001,60969.0,60964.0,0.32805]
[1727816877605,0.001,60969.0,60967.0,0.27946389]
[1727816877869,0.001,60969.0,60968.0,0.49206]
[1727816878553,0.165017,60969.0,60968.0,0.32804]
[1727816878979,0.001,60969.0,60968.0,0.32804]
[1727816879220,0.0257057,60971.0,60968.0,0.32804]
[1727816879427,0.0257057,60971.0,60968.0,0.492059]
[1727816879849,0.0257057,60971.0,60968.0,0.502059]
[1727816880102,0.001,60969.0,60968.0,0.502059]
[1727816880400,0.001,60969.0,60968.0,0.492059]
[1727816880577,0.001,60969.0,60968.0,0.502059]
[1727816880787,0.001,60969.0,60968.0,0.511059]
[1727816881453,0.001,60969.0,60968.0,0.65572269]
[1727816881740,0.002,60971.0,60970.0,0.441315]
[1727816881955,0.0493973,60976.0,60975.0,0.431001]
[1727816882176,0.24712308,60982.0,60975.0,0.43169445]
[1727816882389,0.24712308,60982.0,60981.0,0.163985]
[1727816882608,0.24712308,60982.0,60981.0,0.491955]
[1727816882827,0.049735,60988.0,60987.0,0.355069]
[1727816883042,0.049735,60988.0,60987.0,0.683009]
[1727816883260,0.163957,60992.0,60987.0,0.683009]
[1727816883469,0.32866045,60988.0,60987.0,0.32794]
[1727816883901,0.163966,60988.0,60987.0,0.32794]
[1727816884107,0.263966,60988.0,60987.0,0.32794]
[1727816884542,0.28966629,60988.0,60987.0,0.32794]
[1727816885008,0.45454811,60988.0,60987.0,0.33694]
[1727816885219,0.47754811,60988.0,60987.0,0.33994]
[1727816885428,0.47754811,60988.0,60987.0,0.33094]
[1727816885668,0.47754811,60988.0,60987.0,0.32794]
[1727816886094,1.92014256,60988.0,60987.0,0.32894]
[1727816886296,1.92214256,60988.0,60987.0,0.32894]
[1727816886504,1.92214256,60988.0,60987.0,0.32794]
[1727816886716,1.92014256,60988.0,60987.0,0.32794]
[1727816886951,1.92014256,60988.0,60987.0,0.32894]
[1727816887583,1.75526074,60988.0,60987.0,0.32894]
[1727816888692,1.7611514,60988.0,60987.0,0.32894]
[1727816889567,1.7631514,60988.0,60987.0,0.32894]
[1727816889782,2.2631514,60988.0,60987.0,0.32894]
[1727816890604,2.2697874,60988.0,60987.0,0.263352]
[1727816890841,2.42966922,60988.0,60987.0,0.263352]
[1727816891050,2.96795193,60988.0,60987.0,0.263352]
[1727816891261,2.40396893,60988.0,60987.0,0.262352]
[1727816891472,2.95695193,60988.0,60987.0,0.263352]
[1727816892123,2.96495193,60988.0,60987.0,0.263352]
[1727816892566,2.40896893,60988.0,60987.0,0.263352]
[1727816892996,2.40896893,60988.0,60973.0,0.24335708]
[1727816892997,0.164004,60974.0,60973.0,0.24335708]
[1727816893229,0.45169845,60974.0,60973.0,0.24335708]
[1727816893445,0.164012,60971.0,60970.0,0.000818]
[1727816894530,0.18871909,60971.0,60970.0,0.000818]
[1727816894748,0.43584217,60971.0,60970.0,0.000818]
[1727816894960,0.18871909,60971.0,60970.0,0.005818]
[1727816895180,0.18871909,60971.0,60970.0,0.000818]
[1727816895673,0.18871909,60971.0,60970.0,0.005818]
[1727816895674,0.163012,60971.0,60970.0,0.005818]
[1727816895925,0.3426806,60971.0,60970.0,0.002818]
[1727816896124,0.263412,60971.0,60970.0,0.011818]
[1727816896584,0.263412,60971.0,60970.0,0.009818]
[1727816896825,0.263412,60971.0,60970.0,0.010818]
[1727816897278,0.263412,60971.0,60970.0,0.001818]
[1727816897490,0.262412,60971.0,60970.0,0.001818]
[1727816898128,0.262412,60971.0,60970.0,0.009818]
[1727816898342,0.263412,60971.0,60970.0,0.009818]
[1727816898551,0.28812109,60971.0,60970.0,0.000818]
[1727816898763,0.28912109,60971.0,60970.0,0.011818]
[1727816899178,0.28812109,60971.0,60970.0,0.000818]
[1727816899392,0.28912109,60971.0,60970.0,0.008818]
[1727816899830,0.28912109,60971.0,60970.0,0.009818]
[1727816900719,0.261412,60971.0,60970.0,0.001818]
[1727816900947,0.261412,60971.0,60970.0,0.006818]
[1727816901640,0.42629382,60971.0,60970.0,0.005818]
[1727816901888,1.89188827,60971.0,60970.0,0.000818]
[1727816902118,1.89288827,60971.0,60970.0,0.007818]
[1727816902341,1.94261892,60971.0,60970.0,0.000818]
[1727816902600,2.189742,60971.0,60970.0,0.000818]
[1727816902848,2.25706392,60971.0,60970.0,0.006818]
[1727816903083,2.30265569,60971.0,60970.0,0.006818]
[1727816903312,2.30265569,60971.0,60959.0,0.001636]
[1727816903313,0.764041,60960.0,60959.0,0.001636]
[1727816903521,2.2783661,60960.0,60959.0,0.24875908]
[1727816903737,2.2783661,60960.0,60959.0,0.001636]
[1727816903943,2.30408069,60960.0,60959.0,0.001636]
[1727816904160,2.46896251,60960.0,60959.0,0.001636]
[1727816904602,2.47096251,60960.0,60959.0,0.001636]
[1727816905242,2.47576251,60960.0,60959.0,0.001636]
[1727816905460,2.48076251,60960.0,60959.0,0.001636]
[1727816905706,4.27892651,60960.0,60959.0,0.001636]
[1727816905948,2.83752188,60960.0,60959.0,0.001636]
[1727816906157,2.83152188,60960.0,60959.0,0.001636]
[1727816906375,2.85043102,60960.0,60959.0,0.002636]
[1727816907047,2.85143102,60960.0,60959.0,0.002636]
[1727816907264,2.85043102,60960.0,60959.0,0.002636]
[1727816907689,2.85125208,60960.0,60959.0,0.002636]
[1727816907942,2.86525208,60960.0,60959.0,0.002636]
[1727816908167,2.36533759,60960.0,60959.0,0.002636]
[1727816908407,2.23682858,60960.0,60959.0,0.002636]
[1727816908627,2.22282858,60960.0,60959.0,0.002636]
[1727816908851,1.06852389,60953.0,60952.0,0.001636]
[1727816909115,3.25281781,60953.0,60952.0,0.001636]
[1727816909330,4.57903708,60953.0,60952.0,1e-06]
[1727816909556,4.61475989,60953.0,60952.0,1e-06]
[1727816910005,4.65347304,60953.0,60952.0,1e-06]
[1727816910217,4.61475989,60953.0,60952.0,1e-06]
[1727816910444,0.271066,60951.0,60950.0,1e-06]
[1727816910652,0.793895,60940.0,60921.0,0.1916]
[1727816910911,3.43199234,60940.0,60921.0,0.1916]
[1727816911122,0.789117,60932.0,60915.0,0.0821]
[1727816911357,0.764138,60924.0,60915.0,0.0821]
[1727816911570,0.764138,60924.0,60913.0,0.1847]
[1727816911571,3.03771234,60924.0,60913.0,0.1847]
[1727816911810,3.03771234,60924.0,60920.0,0.00928]
[1727816911811,2.98106361,60924.0,60920.0,0.00928]
[1727816912044,2.98106361,60924.0,60909.0,0.000818]
[1727816912046,0.787176,60910.0,60909.0,0.000818]
[1727816912240,2.22976945,60910.0,60909.0,0.000818]
[1727816912506,1.72976945,60910.0,60909.0,0.000818]
[1727816914026,1.75550427,60910.0,60909.0,0.000818]
[1727816914240,1.60232827,60910.0,60909.0,0.000818]
[1727816914462,1.60232827,60910.0,60909.0,0.181918]
[1727816914463,1.76650427,60910.0,60909.0,0.181918]
[1727816914701,1.75550427,60910.0,60909.0,0.181918]
[1727816914913,1.59132827,60910.0,60909.0,0.181918]
[1727816915123,1.56559345,60910.0,60909.0,0.181918]
[1727816915328,0.45187045,60910.0,60909.0,0.181918]
[1727816915535,0.45287045,60910.0,60909.0,0.181918]
[1727816915749,0.001,60910.0,60909.0,0.181918]
[1727816916252,0.101,60910.0,60909.0,0.181918]
[1727816916470,0.265176,60910.0,60909.0,0.181918]
[1727816916682,0.001,60910.0,60909.0,0.427697]
[1727816917337,0.001,60910.0,60909.0,0.56408849]
[1727816917548,0.001,60910.0,60909.0,0.39990949]
[1727816917758,0.41128408,60916.0,60909.0,0.427697]
[1727816918181,0.001,60910.0,60909.0,0.427697]
[1727816918387,0.16569445,60910.0,60909.0,0.263518]
[1727816918606,0.33087045,60910.0,60909.0,0.263518]
[1727816918814,0.002,60910.0,60909.0,0.263518]
[1727816919249,0.001,60910.0,60909.0,0.47166824]
[1727816919467,0.001,60910.0,60909.0,0.4704673]
[1727816919682,0.002,60910.0,60909.0,0.4704673]
[1727816919896,0.001,60910.0,60909.0,0.4704673]
[1727816920371,0.001,60910.0,60909.0,0.427697]
[1727816920791,0.002,60910.0,60909.0,0.263518]
[1727816921046,0.02573094,60912.0,60909.0,0.263518]
[1727816921268,0.001,60910.0,60909.0,0.263518]
[1727816921498,0.001,60910.0,60909.0,0.427696]
[1727816921718,0.001,60910.0,60909.0,0.263518]
[1727816921933,0.165176,60910.0,60909.0,0.263518]
[1727816922140,0.166176,60910.0,60909.0,0.263518]
[1727816922788,0.165176,60910.0,60909.0,0.263518]
[1727816923415,0.164176,60910.0,60909.0,0.263518]
[1727816923627,0.229985,60910.0,60909.0,0.263518]
[1727816924112,0.25571884,60910.0,60909.0,0.263518]
[1727816924320,0.25671884,60910.0,60909.0,0.263518]
[1727816924557,0.27971884,60910.0,60909.0,0.263518]
[1727816925285,0.066809,60910.0,60909.0,0.263518]
[1727816925500,0.001,60910.0,60909.0,0.263518]
[1727816925708,0.001,60910.0,60909.0,0.427697]
[1727816925908,0.001,60910.0,60909.0,0.263518]
[1727816926139,0.165176,60910.0,60909.0,0.263518]
[1727816926351,0.24582061,60910.0,60909.0,0.263518]
[1727816926975,0.165176,60910.0,60909.0,0.263518]
[1727816927874,0.265176,60910.0,60909.0,0.263518]
[1727816928090,0.265176,60910.0,60909.0,0.000818]
[1727816928091,0.45287045,60910.0,60909.0,0.000818]
[1727816928331,0.4786041,60910.0,60909.0,0.000818]
[1727816928552,0.59871321,60910.0,60909.0,0.000818]
[1727816928999,0.4556041,60910.0,60909.0,0.000818]
[1727816930743,0.42987045,60910.0,60909.0,0.000818]
[1727816932869,0.42987045,60910.0,60909.0,0.329178]
[1727816933962,0.45560314,60910.0,60909.0,0.329178]
[1727816934624,0.45460314,60910.0,60909.0,0.329178]
[1727816934860,0.57231215,60910.0,60909.0,0.329178]
[1727816935395,1.07057946,60910.0,60909.0,0.329178]
[1727816935399,1.06957946,60910.0,60909.0,0.329178]
[1727816935646,1.07157946,60910.0,60909.0,0.329178]
[1727816935885,1.07057946,60910.0,60909.0,0.329178]
[1727816936139,2.34847846,60910.0,60909.0,0.329178]
[1727816936438,1.07057946,60910.0,60909.0,0.329178]
[1727816937176,1.06957946,60910.0,60909.0,0.329178]
[1727816937683,1.08057946,60910.0,60909.0,0.329178]
[1727816937909,1.08257946,60910.0,60909.0,0.329178]
[1727816938144,1.10631572,60910.0,60909.0,0.329178]
[1727816938396,1.11131572,60910.0,60909.0,0.329178]
[1727816938646,1.10631572,60910.0,60909.0,0.329178]
[1727816938884,1.11031572,60910.0,60909.0,0.329178]
[1727816939125,1.11231572,60910.0,60909.0,0.329178]
[1727816939370,1.10131572,60910.0,60909.0,0.329178]
[1727816939617,1.14985697,60910.0,60909.0,0.329178]
[1727816939862,1.15985697,60910.0,60909.0,0.329178]
[1727816940113,2.43175597,60910.0,60909.0,0.329178]
[1727816940368,2.43475597,60910.0,60909.0,0.329178]
[1727816940615,2.43675597,60910.0,60909.0,0.329178]
[1727816940849,2.44261224,60910.0,60909.0,0.329178]
[1727816941085,2.41487598,60910.0,60909.0,0.329178]
[1727816941334,2.41987598,60910.0,60909.0,0.23067]
[1727816941635,3.90392358,60910.0,60909.0,0.164998]
[1727816941869,3.66973358,60910.0,60909.0,0.164998]
[1727816942349,3.66973358,60910.0,60909.0,0.132162]
[1727816942609,3.66973358,60910.0,60909.0,0.099326]
[1727816943106,3.67873358,60910.0,60909.0,0.099326]
[1727816943340,3.67873358,60910.0,60909.0,0.06649]
[1727816943580,2.74985698,60910.0,60909.0,0.06649]
[1727816943839,2.76385698,60910.0,60909.0,0.06649]
[1727816944071,2.76985698,60910.0,60909.0,0.06649]
[1727816944335,2.75585698,60910.0,60909.0,0.06649]
[1727816944558,3.02651403,60910.0,60909.0,0.06649]
[1727816944788,3.04051403,60910.0,60909.0,0.06649]
[1727816945022,3.05351403,60910.0,60909.0,0.06649]
[1727816945271,2.91834103,60910.0,60909.0,0.06649]
[1727816945782,3.1052298,60910.0,60909.0,0.06649]
[1727816946022,3.0912298,60910.0,60909.0,0.06649]
[1727816946242,3.1052298,60910.0,60909.0,0.06649]
[1727816946747,3.0782298,60910.0,60909.0,0.06649]
[1727816946977,3.1052298,60910.0,60909.0,0.06649]
[1727816947246,3.0922298,60910.0,60909.0,0.06649]
[1727816947530,3.0922298,60910.0,60887.0,0.24712308]
[1727816947531,0.5,60888.0,60887.0,0.24712308]
[1727816947809,2.41871722,60888.0,60887.0,0.24712308]
[1727816948027,0.764254,60881.0,60880.0,0.32842308]
[1727816948273,0.95194845,60881.0,60880.0,0.32842308]
[1727816948499,0.95194845,60881.0,60880.0,0.0813]
[1727816949505,0.97769551,60881.0,60880.0,0.0813]
[1727816949961,0.164262,60878.0,60877.0,0.1902]
[1727816950198,0.56966546,60878.0,60877.0,0.1902]
[1727816950453,0.56966546,60878.0,60873.0,0.0764]
[1727816950454,0.287273,60874.0,60873.0,0.0764]
[1727816950693,0.95196745,60874.0,60873.0,0.0764]
[1727816953117,0.005,60874.0,60873.0,0.755627]
[1727816953352,0.24712308,60887.0,60877.0,0.0822]
[1727816953580,0.24712308,60879.0,60877.0,0.0822]
[1727816953807,0.21420845,60886.0,60877.0,0.0822]
[1727816954076,0.19000672,60879.0,60877.0,0.0822]
[1727816954540,0.164262,60878.0,60877.0,0.0822]
[1727816954805,0.32895645,60878.0,60877.0,0.0822]
[1727816955062,0.45195645,60878.0,60877.0,0.0822]
[1727816955708,0.5629551,60878.0,60877.0,0.0822]
[1727816955928,0.45195645,60878.0,60877.0,0.0822]
[1727816956172,0.45195645,60878.0,60877.0,0.0862]
[1727816956173,0.45295645,60878.0,60877.0,0.0862]
[1727816956670,0.45395645,60878.0,60877.0,0.004]
[1727816956978,0.287265,60877.0,60876.0,0.1864]
[1727816957223,0.45195945,60877.0,60876.0,0.1864]
[1727816958369,0.328526,60878.0,60876.0,0.1864]